[Event "*** Titled Tuesday Blitz"]
[Site "Chess.com"]
[Date "2019.09.03"]
[Round "5"]
[White "babero_gordo"]
[Black "Al_Shima"]
[Result "1-0"]
[WhiteElo "2184"]
[BlackElo "2450"]
[TimeControl "180+2"]
[EndTime "16:07:56 PDT"]
[Termination "babero_gordo won by checkmate"]

1. e4 {[%clk 0:03:01.9]} 1... d5 {[%clk 0:03:00.5]} 2. exd5 {[%clk 0:03:02.6]}
2... Nf6 {[%clk 0:03:01.4]} 3. d4 {[%clk 0:02:55.4]} 3... Nxd5 {[%clk
0:03:02.2]} 4. c4 {[%clk 0:02:56.5]} 4... Nb6 {[%clk 0:03:01.8]} 5. Nc3 {[%clk
0:02:57.6]} 5... e5 {[%clk 0:03:02.1]} 6. dxe5 {[%clk 0:02:40.1]} 6... Qxd1+
{[%clk 0:03:01.9]} 7. Kxd1 {[%clk 0:02:40.8]} 7... Nc6 {[%clk 0:03:03.3]} 8. f4
{[%clk 0:02:25.8]} 8... Be6 {[%clk 0:03:03.3]} 9. b3 {[%clk 0:02:22.4]} 9...
O-O-O+ {[%clk 0:03:03.2]} 10. Ke1 {[%clk 0:02:17.2]} 10... Bc5 {[%clk
0:02:38.2]} 11. Nf3 {[%clk 0:02:08.3]} 11... f6 {[%clk 0:02:37.4]} 12. Ne4
{[%clk 0:02:02.1]} 12... Bb4+ {[%clk 0:02:30.2]} 13. Bd2 {[%clk 0:01:59.9]}
13... Ba3 {[%clk 0:02:28]} 14. exf6 {[%clk 0:01:43.6]} 14... gxf6 {[%clk
0:02:28.4]} 15. Be2 {[%clk 0:01:39.5]} 15... Bf5 {[%clk 0:02:27.4]} 16. Ng3
{[%clk 0:01:36.5]} 16... Bc2 {[%clk 0:02:21.7]} 17. Bc3 {[%clk 0:01:30.2]} 17...
Nd7 {[%clk 0:01:54.3]} 18. Bd1 {[%clk 0:01:12]} 18... Bd3 {[%clk 0:01:52.5]} 19.
Be2 {[%clk 0:01:10.6]} 19... Bc2 {[%clk 0:01:46.2]} 20. Bd1 {[%clk 0:01:11]}
20... Rhe8+ {[%clk 0:01:46]} 21. Kf1 {[%clk 0:01:06.2]} 21... Bd3+ {[%clk
0:01:40.6]} 22. Be2 {[%clk 0:01:07.4]} 22... Bc2 {[%clk 0:01:33.3]} 23. Re1
{[%clk 0:01:05.9]} 23... Bd6 {[%clk 0:01:31]} 24. Nh5 {[%clk 0:01:04.2]} 24...
Rf8 {[%clk 0:01:23.6]} 25. g3 {[%clk 0:01:02.8]} 25... Bf5 {[%clk 0:01:16.1]}
26. Kg2 {[%clk 0:01:03.3]} 26... Rf7 {[%clk 0:01:13.2]} 27. Nd4 {[%clk
0:01:01.8]} 27... Nxd4 {[%clk 0:01:06.6]} 28. Bxd4 {[%clk 0:01:03.7]} 28... Bb4
{[%clk 0:01:01.9]} 29. Ref1 {[%clk 0:00:55.4]} 29... Re8 {[%clk 0:00:54.9]} 30.
Bf3 {[%clk 0:00:50.4]} 30... Bg6 {[%clk 0:00:39.3]} 31. f5 {[%clk 0:00:44.1]}
31... Bxf5 {[%clk 0:00:33.5]} 32. Bxb7+ {[%clk 0:00:40.3]} 32... Kxb7 {[%clk
0:00:35.4]} 33. Rxf5 {[%clk 0:00:41.7]} 33... Re2+ {[%clk 0:00:33.8]} 34. Kf3
{[%clk 0:00:39.5]} 34... Rxa2 {[%clk 0:00:25.4]} 35. Rb5+ {[%clk 0:00:39.1]}
35... Kc8 {[%clk 0:00:24.1]} 36. Rxb4 {[%clk 0:00:39.8]} 36... c5 {[%clk
0:00:25]} 37. Bxc5 {[%clk 0:00:33.3]} 37... Nxc5 {[%clk 0:00:26.9]} 38. Rd1
{[%clk 0:00:26.9]} 38... Rxh2 {[%clk 0:00:20.7]} 39. Nf4 {[%clk 0:00:27.5]}
39... Rb2 {[%clk 0:00:18.8]} 40. Rb5 {[%clk 0:00:25.4]} 40... Rxb3+ {[%clk
0:00:19.6]} 41. Rxb3 {[%clk 0:00:26]} 41... Nxb3 {[%clk 0:00:21.5]} 42. Ne6
{[%clk 0:00:24.5]} 42... Re7 {[%clk 0:00:18.6]} 43. Rd3 {[%clk 0:00:19.7]} 43...
Rxe6 {[%clk 0:00:17.6]} 44. Rxb3 {[%clk 0:00:20.6]} 44... Rb6 {[%clk 0:00:18.4]}
45. Re3 {[%clk 0:00:21.3]} 45... Rc6 {[%clk 0:00:19.2]} 46. Re4 {[%clk
0:00:22.2]} 46... Kb7 {[%clk 0:00:19.5]} 47. Rh4 {[%clk 0:00:22.8]} 47... Rc7
{[%clk 0:00:20]} 48. Ke3 {[%clk 0:00:23.3]} 48... Kb6 {[%clk 0:00:20.7]} 49. Kd4
{[%clk 0:00:24.4]} 49... Ka5 {[%clk 0:00:20.7]} 50. Rh5+ {[%clk 0:00:25.7]}
50... Ka4 {[%clk 0:00:21.2]} 51. Rb5 {[%clk 0:00:25.9]} 51... a6 {[%clk
0:00:21.9]} 52. Rb6 {[%clk 0:00:25.6]} 52... a5 {[%clk 0:00:19.6]} 53. Rxf6
{[%clk 0:00:25.6]} 53... Kb4 {[%clk 0:00:19]} 54. Rb6+ {[%clk 0:00:26.3]} 54...
Ka4 {[%clk 0:00:20.3]} 55. c5 {[%clk 0:00:27.3]} 55... Rg7 {[%clk 0:00:19.6]}
56. c6 {[%clk 0:00:23.5]} 56... Rc7 {[%clk 0:00:14.4]} 57. Kd5 {[%clk
0:00:24.4]} 57... Ka3 {[%clk 0:00:12.8]} 58. Kd6 {[%clk 0:00:25.5]} 58... Rg7
{[%clk 0:00:13.3]} 59. c7 {[%clk 0:00:25.4]} 59... Rxc7 {[%clk 0:00:09.7]} 60.
Kxc7 {[%clk 0:00:26.3]} 60... a4 {[%clk 0:00:11.6]} 61. Kc6 {[%clk 0:00:26.5]}
61... Ka2 {[%clk 0:00:13.5]} 62. Kc5 {[%clk 0:00:26.3]} 62... a3 {[%clk
0:00:15.4]} 63. Kc4 {[%clk 0:00:27.2]} 63... Ka1 {[%clk 0:00:17.3]} 64. Kc3
{[%clk 0:00:28.3]} 64... a2 {[%clk 0:00:19.2]} 65. Kc2 {[%clk 0:00:27]} 65... h5
{[%clk 0:00:19.4]} 66. Rf6 {[%clk 0:00:27.5]} 66... h4 {[%clk 0:00:20.4]} 67.
Rf1# {[%clk 0:00:28.5]} 1-0

[Event "*** Titled Tuesday Blitz"]
[Site "Chess.com"]
[Date "2019.09.03"]
[Round "5"]
[White "Gattass"]
[Black "GMJimKnopf"]
[Result "0-1"]
[WhiteElo "2336"]
[BlackElo "2733"]
[TimeControl "180+2"]
[EndTime "16:07:57 PDT"]
[Termination "GMJimKnopf won by resignation"]

1. d4 {[%clk 0:03:01.9]} 1... g6 {[%clk 0:03:00.5]} 2. Nc3 {[%clk 0:03:00.5]}
2... c6 {[%clk 0:03:00.6]} 3. e4 {[%clk 0:03:00.2]} 3... d5 {[%clk 0:03:02.5]}
4. exd5 {[%clk 0:03:00.5]} 4... cxd5 {[%clk 0:03:03.8]} 5. Bf4 {[%clk
0:03:00.6]} 5... a6 {[%clk 0:03:03]} 6. Be5 {[%clk 0:02:55]} 6... Nf6 {[%clk
0:03:03.5]} 7. Bxf6 {[%clk 0:02:54.8]} 7... exf6 {[%clk 0:03:05.4]} 8. a3 {[%clk
0:02:47.6]} 8... Bg7 {[%clk 0:03:06.3]} 9. g3 {[%clk 0:02:44.4]} 9... O-O {[%clk
0:03:07.7]} 10. Bg2 {[%clk 0:02:45.7]} 10... Re8+ {[%clk 0:03:06.1]} 11. Nge2
{[%clk 0:02:47.6]} 11... Bg4 {[%clk 0:03:06]} 12. h3 {[%clk 0:02:41.6]} 12...
Bxe2 {[%clk 0:03:04.4]} 13. Nxe2 {[%clk 0:02:43.5]} 13... Nc6 {[%clk 0:02:31.8]}
14. O-O {[%clk 0:02:41.7]} 14... f5 {[%clk 0:02:24.8]} 15. c3 {[%clk 0:02:34.8]}
15... Bh6 {[%clk 0:02:24.4]} 16. f4 {[%clk 0:01:55.6]} 16... Qb6 {[%clk
0:02:18.2]} 17. Qd2 {[%clk 0:01:47.8]} 17... Qb5 {[%clk 0:02:10.9]} 18. Rf2
{[%clk 0:01:40.7]} 18... Na5 {[%clk 0:02:10.6]} 19. a4 {[%clk 0:01:32.1]} 19...
Qc4 {[%clk 0:02:10.3]} 20. Nc1 {[%clk 0:01:18.9]} 20... Re6 {[%clk 0:01:55.8]}
21. Qd3 {[%clk 0:01:11.8]} 21... Re1+ {[%clk 0:01:48.1]} 22. Rf1 {[%clk
0:01:12.2]} 22... Rae8 {[%clk 0:01:25.8]} 23. b4 {[%clk 0:01:07.8]} 23... Rxf1+
{[%clk 0:01:14]} 24. Kxf1 {[%clk 0:01:07.9]} 24... Re3 {[%clk 0:00:50.8]} 25.
Qxc4 {[%clk 0:01:08.6]} 25... Nxc4 {[%clk 0:00:52.7]} 26. Ne2 {[%clk 0:01:09.9]}
26... Rd3 {[%clk 0:00:44.1]} 27. Kf2 {[%clk 0:01:02.5]} 27... Ne3 {[%clk
0:00:39.6]} 28. Bf3 {[%clk 0:00:58.8]} 28... Bf8 {[%clk 0:00:37.5]} 29. Rc1
{[%clk 0:00:51.2]} 29... h5 {[%clk 0:00:35.6]} 30. h4 {[%clk 0:00:46.8]} 30...
b6 {[%clk 0:00:35.6]} 31. Rb1 {[%clk 0:00:44.2]} 31... Bd6 {[%clk 0:00:35.7]}
32. Nc1 {[%clk 0:00:38.2]} 32... Rxc3 {[%clk 0:00:36.3]} 33. Ne2 {[%clk
0:00:33.3]} 33... Ra3 {[%clk 0:00:36.2]} 34. b5 {[%clk 0:00:32.5]} 34... a5
{[%clk 0:00:35.5]} 35. Rc1 {[%clk 0:00:33.5]} 35... Ng4+ {[%clk 0:00:33.2]} 36.
Bxg4 {[%clk 0:00:31.9]} 36... hxg4 {[%clk 0:00:34.6]} 37. Rc6 {[%clk 0:00:33.8]}
37... Bf8 {[%clk 0:00:32.3]} 38. Rxb6 {[%clk 0:00:35]} 38... Rxa4 {[%clk
0:00:34.2]} 39. Rb8 {[%clk 0:00:36.1]} 39... Rb4 {[%clk 0:00:35]} 40. b6 {[%clk
0:00:37.6]} 40... Kg7 {[%clk 0:00:35.7]} 41. Nc3 {[%clk 0:00:36.4]} 41... Bd6
{[%clk 0:00:34.5]} 42. Rb7 {[%clk 0:00:35.5]} 42... Rxd4 {[%clk 0:00:33.6]} 43.
Nb5 {[%clk 0:00:34.3]} 43... Rd2+ {[%clk 0:00:31.6]} 44. Ke3 {[%clk 0:00:29.8]}
44... Bb4 {[%clk 0:00:33.5]} 45. Rd7 {[%clk 0:00:24]} 45... Rb2 {[%clk
0:00:31.5]} 46. Nd6 {[%clk 0:00:21.5]} 46... Bc5+ {[%clk 0:00:31.3]} 47. Kd3
{[%clk 0:00:22.8]} 47... Rxb6 {[%clk 0:00:29.5]} 48. Nxf7 {[%clk 0:00:22.3]}
48... a4 {[%clk 0:00:26.6]} 49. Ne5+ {[%clk 0:00:23.3]} 49... Kg8 {[%clk
0:00:26]} 50. Rxd5 {[%clk 0:00:25]} 50... Bf2 {[%clk 0:00:27.4]} 51. Ra5 {[%clk
0:00:25]} 51... Rb3+ {[%clk 0:00:25.7]} 52. Kc4 {[%clk 0:00:24.1]} 52... Bxg3
{[%clk 0:00:24.8]} 53. Nxg6 {[%clk 0:00:24.7]} 53... Rb6 {[%clk 0:00:17.7]} 54.
Ne7+ {[%clk 0:00:24.6]} 54... Kf7 {[%clk 0:00:19.3]} 55. Nxf5 {[%clk 0:00:26.5]}
55... Bxf4 {[%clk 0:00:20.6]} 56. h5 {[%clk 0:00:27.1]} 56... g3 {[%clk
0:00:20.9]} 57. Rxa4 {[%clk 0:00:21.9]} 57... g2 {[%clk 0:00:20.5]} 58. Ra1
{[%clk 0:00:21.1]} 58... Rc6+ {[%clk 0:00:22.1]} 59. Kd5 {[%clk 0:00:22]} 59...
Rc1 {[%clk 0:00:23.5]} 60. Ra7+ {[%clk 0:00:21.9]} 60... Kf6 {[%clk 0:00:25.4]}
61. Rg7 {[%clk 0:00:19.4]} 61... g1=Q {[%clk 0:00:25]} 0-1

[Event "*** Titled Tuesday Blitz"]
[Site "Chess.com"]
[Date "2019.09.03"]
[Round "5"]
[White "slowdgehammer"]
[Black "DishonorOnYourCow"]
[Result "0-1"]
[WhiteElo "2399"]
[BlackElo "2223"]
[TimeControl "180+2"]
[EndTime "16:08:13 PDT"]
[Termination "DishonorOnYourCow won by checkmate"]

1. b3 {[%clk 0:03:01.9]} 1... d5 {[%clk 0:02:57.6]} 2. Bb2 {[%clk 0:03:01.1]}
2... c5 {[%clk 0:02:57.5]} 3. e3 {[%clk 0:03:01.8]} 3... Nf6 {[%clk 0:02:58.4]}
4. Nf3 {[%clk 0:03:01.7]} 4... a6 {[%clk 0:02:59.2]} 5. Be2 {[%clk 0:02:53]}
5... Nc6 {[%clk 0:02:59.7]} 6. O-O {[%clk 0:02:52.6]} 6... g6 {[%clk 0:03:00.6]}
7. d4 {[%clk 0:02:53.3]} 7... cxd4 {[%clk 0:03:00.9]} 8. Nxd4 {[%clk 0:02:54]}
8... Bg7 {[%clk 0:03:00.4]} 9. Nxc6 {[%clk 0:02:50.7]} 9... bxc6 {[%clk
0:03:01.1]} 10. c4 {[%clk 0:02:50.8]} 10... O-O {[%clk 0:03:01.6]} 11. Nd2
{[%clk 0:02:50.8]} 11... Bf5 {[%clk 0:03:00.4]} 12. cxd5 {[%clk 0:02:47.6]}
12... cxd5 {[%clk 0:03:01.1]} 13. a3 {[%clk 0:02:41.6]} 13... Rc8 {[%clk
0:02:59.8]} 14. Bxa6 {[%clk 0:02:36.5]} 14... Rc2 {[%clk 0:02:53.3]} 15. Bd4
{[%clk 0:02:31.1]} 15... Qa5 {[%clk 0:02:51]} 16. b4 {[%clk 0:01:38]} 16... Qxa6
{[%clk 0:02:49.2]} 17. Nb3 {[%clk 0:01:39.2]} 17... Rcc8 {[%clk 0:02:29.3]} 18.
Nc5 {[%clk 0:01:39.6]} 18... Qb5 {[%clk 0:02:24.6]} 19. f3 {[%clk 0:01:39.9]}
19... Nd7 {[%clk 0:02:20.3]} 20. Bxg7 {[%clk 0:01:38.3]} 20... Kxg7 {[%clk
0:02:21.1]} 21. Nxd7 {[%clk 0:01:21.1]} 21... Qxd7 {[%clk 0:02:19.1]} 22. Qd4+
{[%clk 0:01:20.7]} 22... f6 {[%clk 0:02:18.1]} 23. Rfc1 {[%clk 0:01:21.5]} 23...
e5 {[%clk 0:02:15.3]} 24. Qd2 {[%clk 0:01:17.4]} 24... d4 {[%clk 0:02:09.9]} 25.
exd4 {[%clk 0:01:16.8]} 25... exd4 {[%clk 0:02:10.6]} 26. Rc5 {[%clk 0:01:12.5]}
26... Rxc5 {[%clk 0:02:05.3]} 27. bxc5 {[%clk 0:01:14.4]} 27... d3 {[%clk
0:02:05.6]} 28. Rc1 {[%clk 0:01:09.8]} 28... Rc8 {[%clk 0:01:59.6]} 29. g4
{[%clk 0:00:59.1]} 29... Be6 {[%clk 0:01:51.9]} 30. Qc3 {[%clk 0:00:45.1]} 30...
Qd5 {[%clk 0:01:43.8]} 31. Rd1 {[%clk 0:00:31.1]} 31... Rxc5 {[%clk 0:01:25.2]}
32. Qxd3 {[%clk 0:00:31.6]} 32... Qc6 {[%clk 0:01:20.3]} 33. Qe3 {[%clk
0:00:20.7]} 33... Rc3 {[%clk 0:01:09.6]} 34. Rd3 {[%clk 0:00:21.5]} 34... Rxd3
{[%clk 0:01:06]} 35. Qxd3 {[%clk 0:00:23.4]} 35... Qc5+ {[%clk 0:01:07.1]} 36.
Kg2 {[%clk 0:00:23.9]} 36... Qd5 {[%clk 0:00:59.6]} 37. Qe3 {[%clk 0:00:23.8]}
37... Bxg4 {[%clk 0:00:57.2]} 38. Qe7+ {[%clk 0:00:17.8]} 38... Kh6 {[%clk
0:00:54.3]} 39. Qxf6 {[%clk 0:00:16.6]} 39... Bf5 {[%clk 0:00:33.2]} 40. Qh4+
{[%clk 0:00:11]} 40... Kg7 {[%clk 0:00:34]} 41. Qe7+ {[%clk 0:00:12.4]} 41...
Qf7 {[%clk 0:00:34.7]} 42. Qe5+ {[%clk 0:00:13.9]} 42... Qf6 {[%clk 0:00:35.2]}
43. Qc7+ {[%clk 0:00:15.1]} 43... Kh6 {[%clk 0:00:35.4]} 44. Kf2 {[%clk
0:00:09.8]} 44... Qb2+ {[%clk 0:00:35.6]} 45. Kg3 {[%clk 0:00:10.8]} 45... Qxa3
{[%clk 0:00:31]} 46. Qf4+ {[%clk 0:00:12.2]} 46... Kg7 {[%clk 0:00:31.9]} 47.
Qe5+ {[%clk 0:00:13.1]} 47... Kf7 {[%clk 0:00:31.9]} 48. Qd5+ {[%clk 0:00:14.3]}
48... Be6 {[%clk 0:00:32.5]} 49. Qb7+ {[%clk 0:00:14.6]} 49... Qe7 {[%clk
0:00:33.2]} 50. Qe4 {[%clk 0:00:11.8]} 50... Qg5+ {[%clk 0:00:31.8]} 51. Kf2
{[%clk 0:00:12.5]} 51... Qd2+ {[%clk 0:00:32.6]} 52. Kg3 {[%clk 0:00:13.7]}
52... Qd6+ {[%clk 0:00:33.4]} 53. Kg2 {[%clk 0:00:14.6]} 53... h5 {[%clk
0:00:31.7]} 54. Qb7+ {[%clk 0:00:15.1]} 54... Qe7 {[%clk 0:00:31.9]} 55. Qb2
{[%clk 0:00:13.1]} 55... Kg8 {[%clk 0:00:31.8]} 56. Qb8+ {[%clk 0:00:13.1]}
56... Kh7 {[%clk 0:00:32.6]} 57. Qf4 {[%clk 0:00:13.7]} 57... Qf7 {[%clk
0:00:33.3]} 58. Qg5 {[%clk 0:00:13.6]} 58... Bd5 {[%clk 0:00:34]} 59. Qg3 {[%clk
0:00:13.8]} 59... Qf5 {[%clk 0:00:31]} 60. h4 {[%clk 0:00:14.1]} 60... Qc2+
{[%clk 0:00:31.2]} 61. Kg1 {[%clk 0:00:15.7]} 61... Qd1+ {[%clk 0:00:31.9]} 62.
Kg2 {[%clk 0:00:16.9]} 62... Qe2+ {[%clk 0:00:32.8]} 63. Kg1 {[%clk 0:00:11.7]}
63... Qxf3 {[%clk 0:00:32.3]} 64. Qc7+ {[%clk 0:00:12.5]} 64... Qf7 {[%clk
0:00:25.3]} 65. Qc1 {[%clk 0:00:07.2]} 65... Qe7 {[%clk 0:00:22.4]} 66. Qf4
{[%clk 0:00:06.8]} 66... Qe1+ {[%clk 0:00:21.5]} 67. Kh2 {[%clk 0:00:04.9]}
67... Qh1+ {[%clk 0:00:22.1]} 68. Kg3 {[%clk 0:00:06.4]} 68... Qg2# {[%clk
0:00:23.1]} 0-1

[Event "*** Titled Tuesday Blitz"]
[Site "Chess.com"]
[Date "2019.09.03"]
[Round "5"]
[White "DarkAlekhine"]
[Black "IMTominho"]
[Result "0-1"]
[WhiteElo "2489"]
[BlackElo "2693"]
[TimeControl "180+2"]
[EndTime "16:08:21 PDT"]
[Termination "IMTominho won by resignation"]

1. e4 {[%clk 0:03:01.9]} 1... e5 {[%clk 0:03:00.4]} 2. Nf3 {[%clk 0:03:01.6]}
2... Nf6 {[%clk 0:03:01.4]} 3. Nxe5 {[%clk 0:02:59.1]} 3... d6 {[%clk
0:03:02.4]} 4. Nf3 {[%clk 0:03:00.4]} 4... Nxe4 {[%clk 0:03:03.2]} 5. Bd3 {[%clk
0:03:01.7]} 5... Nf6 {[%clk 0:03:02.2]} 6. O-O {[%clk 0:03:02.8]} 6... Be7
{[%clk 0:03:03.7]} 7. Re1 {[%clk 0:03:04]} 7... O-O {[%clk 0:03:04.3]} 8. c4
{[%clk 0:03:03.5]} 8... Bg4 {[%clk 0:02:57.8]} 9. Nc3 {[%clk 0:02:33.4]} 9...
Nc6 {[%clk 0:02:56.1]} 10. h3 {[%clk 0:02:26.4]} 10... Bh5 {[%clk 0:02:50.6]}
11. Be2 {[%clk 0:02:15.4]} 11... d5 {[%clk 0:02:46.9]} 12. cxd5 {[%clk
0:02:15.4]} 12... Nxd5 {[%clk 0:02:47.5]} 13. d4 {[%clk 0:02:16.9]} 13... Bf6
{[%clk 0:02:32.2]} 14. Be3 {[%clk 0:01:52.3]} 14... Re8 {[%clk 0:02:24.1]} 15.
Bc4 {[%clk 0:01:39]} 15... Nxe3 {[%clk 0:02:17.8]} 16. fxe3 {[%clk 0:01:39]}
16... Bg5 {[%clk 0:02:10.9]} 17. Nxg5 {[%clk 0:01:16.1]} 17... Qxg5 {[%clk
0:01:50.4]} 18. Qd2 {[%clk 0:01:08]} 18... Rad8 {[%clk 0:01:48.8]} 19. Qf2
{[%clk 0:01:09.1]} 19... Na5 {[%clk 0:01:45.9]} 20. Bd3 {[%clk 0:00:51.4]} 20...
Re7 {[%clk 0:01:45.2]} 21. Ne4 {[%clk 0:00:48.1]} 21... Qd5 {[%clk 0:01:40.6]}
22. Rac1 {[%clk 0:00:47.8]} 22... Bg6 {[%clk 0:01:34.4]} 23. Nc3 {[%clk
0:00:42.2]} 23... Qh5 {[%clk 0:01:28.6]} 24. Be2 {[%clk 0:00:43.2]} 24... Qg5
{[%clk 0:01:28.2]} 25. Bf3 {[%clk 0:00:44.6]} 25... Nc4 {[%clk 0:01:19.4]} 26.
Nd5 {[%clk 0:00:44.2]} 26... Rxd5 {[%clk 0:01:19.6]} 27. Rxc4 {[%clk 0:00:43.9]}
27... Rf5 {[%clk 0:01:16.6]} 28. e4 {[%clk 0:00:29.3]} 28... Rf4 {[%clk
0:01:17.2]} 29. Qd2 {[%clk 0:00:24.5]} 29... h6 {[%clk 0:01:14.6]} 30. e5 {[%clk
0:00:21.5]} 30... c6 {[%clk 0:01:11.2]} 31. Kh2 {[%clk 0:00:21.9]} 31... Bf5
{[%clk 0:01:05.6]} 32. d5 {[%clk 0:00:17.9]} 32... cxd5 {[%clk 0:01:01.8]} 33.
Rxf4 {[%clk 0:00:18.5]} 33... Be6 {[%clk 0:00:56.2]} 34. Qd4 {[%clk 0:00:17.2]}
34... Rc7 {[%clk 0:00:42.9]} 35. Bg4 {[%clk 0:00:16.1]} 35... Rc4 {[%clk
0:00:38.8]} 36. Bxe6 {[%clk 0:00:05.4]} 36... fxe6 {[%clk 0:00:34.3]} 37. Qxc4
{[%clk 0:00:06.6]} 37... dxc4 {[%clk 0:00:34.9]} 38. Rxc4 {[%clk 0:00:08.5]}
38... Qd2 {[%clk 0:00:36.3]} 39. Ree4 {[%clk 0:00:08.3]} 39... Qxb2 {[%clk
0:00:35.4]} 40. Rc7 {[%clk 0:00:04.2]} 40... Qb6 {[%clk 0:00:29.8]} 41. Rd7
{[%clk 0:00:04.4]} 41... Qc6 {[%clk 0:00:25.4]} 42. Red4 {[%clk 0:00:05.5]}
42... Qc5 {[%clk 0:00:24.6]} 43. Rd8+ {[%clk 0:00:05.2]} 43... Kh7 {[%clk
0:00:25.1]} 44. Re4 {[%clk 0:00:07.1]} 44... b5 {[%clk 0:00:23.2]} 45. Rd7
{[%clk 0:00:05.5]} 45... a5 {[%clk 0:00:20.9]} 46. Rd6 {[%clk 0:00:06.5]} 46...
b4 {[%clk 0:00:20.7]} 47. Re2 {[%clk 0:00:06.7]} 47... a4 {[%clk 0:00:20.6]} 48.
Rdd2 {[%clk 0:00:04.8]} 48... Qc4 {[%clk 0:00:18.3]} 49. Rc2 {[%clk 0:00:05.1]}
49... Qf4+ {[%clk 0:00:19.2]} 50. Kg1 {[%clk 0:00:06.2]} 50... Kg6 {[%clk
0:00:19.9]} 51. Rcd2 {[%clk 0:00:05.9]} 51... Qc4 {[%clk 0:00:19.3]} 52. Rc2
{[%clk 0:00:07.2]} 52... Qd4+ {[%clk 0:00:20.7]} 53. Kh2 {[%clk 0:00:08.8]}
53... h5 {[%clk 0:00:22]} 54. Kh1 {[%clk 0:00:08.8]} 54... Kf5 {[%clk
0:00:22.9]} 55. Kh2 {[%clk 0:00:10.7]} 55... g5 {[%clk 0:00:23.8]} 56. Rcd2
{[%clk 0:00:10.8]} 56... Qc3 {[%clk 0:00:24.3]} 57. Rc2 {[%clk 0:00:11.8]} 57...
Qd4 {[%clk 0:00:24.4]} 58. Rcd2 {[%clk 0:00:12.9]} 58... Qf4+ {[%clk 0:00:25.6]}
59. Kg1 {[%clk 0:00:13.5]} 59... Kg6 {[%clk 0:00:25]} 60. Rb2 {[%clk 0:00:14.8]}
60... g4 {[%clk 0:00:24.7]} 61. hxg4 {[%clk 0:00:15]} 61... hxg4 {[%clk
0:00:26.6]} 62. Rbc2 {[%clk 0:00:11.8]} 62... g3 {[%clk 0:00:25.2]} 63. Rcd2
{[%clk 0:00:09.6]} 63... Kg5 {[%clk 0:00:24]} 64. Rc2 {[%clk 0:00:09.9]} 64...
Qd4+ {[%clk 0:00:24.3]} 65. Kf1 {[%clk 0:00:10.6]} 65... Qd1+ {[%clk 0:00:25.3]}
66. Re1 {[%clk 0:00:12.5]} 0-1

[Event "*** Titled Tuesday Blitz"]
[Site "Chess.com"]
[Date "2019.09.03"]
[Round "5"]
[White "novocane"]
[Black "RU_B9"]
[Result "1-0"]
[WhiteElo "2181"]
[BlackElo "1707"]
[TimeControl "180+2"]
[EndTime "16:08:25 PDT"]
[Termination "novocane won on time"]

1. d4 {[%clk 0:03:01.8]} 1... Nf6 {[%clk 0:02:59.9]} 2. c4 {[%clk 0:03:03.1]}
2... e6 {[%clk 0:03:00.4]} 3. Nc3 {[%clk 0:03:03.4]} 3... Bb4 {[%clk 0:03:00.5]}
4. e3 {[%clk 0:03:03.9]} 4... O-O {[%clk 0:02:59.3]} 5. Ne2 {[%clk 0:03:04.7]}
5... b6 {[%clk 0:03:00]} 6. a3 {[%clk 0:03:04.8]} 6... Be7 {[%clk 0:03:00.2]} 7.
d5 {[%clk 0:03:01.1]} 7... d6 {[%clk 0:02:44.1]} 8. Ng3 {[%clk 0:02:59.9]} 8...
Nbd7 {[%clk 0:02:31.4]} 9. Be2 {[%clk 0:02:59.6]} 9... Bb7 {[%clk 0:02:15.2]}
10. O-O {[%clk 0:02:58.6]} 10... Rc8 {[%clk 0:02:14.4]} 11. e4 {[%clk
0:02:54.2]} 11... c6 {[%clk 0:01:59]} 12. dxe6 {[%clk 0:02:29.4]} 12... fxe6
{[%clk 0:01:59.1]} 13. Be3 {[%clk 0:02:16.1]} 13... e5 {[%clk 0:01:55.5]} 14.
Nf5 {[%clk 0:01:47.7]} 14... Nc5 {[%clk 0:01:53.2]} 15. f3 {[%clk 0:01:26.5]}
15... Ne6 {[%clk 0:01:31.9]} 16. Qd2 {[%clk 0:01:13.5]} 16... Rc7 {[%clk
0:01:30.5]} 17. Rfd1 {[%clk 0:01:10.6]} 17... Rd7 {[%clk 0:01:30.3]} 18. Qc2
{[%clk 0:01:02.6]} 18... Ne8 {[%clk 0:01:27.2]} 19. Nxe7+ {[%clk 0:00:46.9]}
19... Qxe7 {[%clk 0:01:27.4]} 20. b4 {[%clk 0:00:39.8]} 20... Nf4 {[%clk
0:00:59.3]} 21. Bf1 {[%clk 0:00:39.9]} 21... Qe6 {[%clk 0:00:49.9]} 22. Rd2
{[%clk 0:00:39.6]} 22... Rf6 {[%clk 0:00:49.5]} 23. Rad1 {[%clk 0:00:38.6]}
23... Rg6 {[%clk 0:00:48.7]} 24. Kh1 {[%clk 0:00:39.1]} 24... Ba6 {[%clk
0:00:43.8]} 25. Bxf4 {[%clk 0:00:37.6]} 25... exf4 {[%clk 0:00:42.8]} 26. b5
{[%clk 0:00:38.5]} 26... Bb7 {[%clk 0:00:29.7]} 27. bxc6 {[%clk 0:00:33.9]}
27... Bxc6 {[%clk 0:00:31.6]} 28. Nd5 {[%clk 0:00:35.1]} 28... Qe5 {[%clk
0:00:27.9]} 29. Nb4 {[%clk 0:00:31.4]} 29... Bb7 {[%clk 0:00:27]} 30. Qb2 {[%clk
0:00:30.8]} 30... Qxb2 {[%clk 0:00:15.1]} 31. Rxb2 {[%clk 0:00:32.7]} 31... Rc7
{[%clk 0:00:14.7]} 32. Nd5 {[%clk 0:00:32.4]} 32... Bxd5 {[%clk 0:00:15.3]} 33.
Rxd5 {[%clk 0:00:30.2]} 33... Kf8 {[%clk 0:00:15.8]} 34. a4 {[%clk 0:00:30.2]}
34... Ke7 {[%clk 0:00:15.8]} 35. a5 {[%clk 0:00:31.4]} 35... bxa5 {[%clk
0:00:15.4]} 36. Rxa5 {[%clk 0:00:32]} 36... Re6 {[%clk 0:00:13.4]} 37. Kg1
{[%clk 0:00:32]} 37... Re5 {[%clk 0:00:14.1]} 38. Rxe5+ {[%clk 0:00:31.1]} 38...
dxe5 {[%clk 0:00:14.6]} 39. Rb5 {[%clk 0:00:33]} 39... Ke6 {[%clk 0:00:14.7]}
40. c5 {[%clk 0:00:32.3]} 40... Nf6 {[%clk 0:00:13.1]} 41. Bc4+ {[%clk 0:00:33]}
41... Ke7 {[%clk 0:00:13.5]} 42. Bd5 {[%clk 0:00:34.2]} 42... Nd7 {[%clk
0:00:14.3]} 43. c6 {[%clk 0:00:28.1]} 43... Nb6 {[%clk 0:00:14.8]} 44. g3 {[%clk
0:00:25]} 44... fxg3 {[%clk 0:00:12]} 45. hxg3 {[%clk 0:00:26.8]} 45... Kd6
{[%clk 0:00:13.5]} 46. Ra5 {[%clk 0:00:22.6]} 46... g5 {[%clk 0:00:07.5]} 47.
Kf2 {[%clk 0:00:23.7]} 47... h5 {[%clk 0:00:06.8]} 48. Ke3 {[%clk 0:00:24.7]}
48... h4 {[%clk 0:00:03.3]} 49. gxh4 {[%clk 0:00:25.3]} 49... gxh4 {[%clk
0:00:03.8]} 50. Kf2 {[%clk 0:00:24.6]} 50... Rg7 {[%clk 0:00:03.2]} 51. Ra1
{[%clk 0:00:10.7]} 51... Nxd5 {[%clk 0:00:03]} 52. Rd1 {[%clk 0:00:07.5]} 52...
Kxc6 {[%clk 0:00:03.3]} 53. Rxd5 {[%clk 0:00:08.3]} 53... h3 {[%clk 0:00:03.2]}
54. Rxe5 {[%clk 0:00:09]} 54... Rh7 {[%clk 0:00:02.6]} 55. Kg1 {[%clk
0:00:09.9]} 55... h2+ {[%clk 0:00:03.2]} 56. Kh1 {[%clk 0:00:10.8]} 56... Kb6
{[%clk 0:00:04.3]} 57. Rd5 {[%clk 0:00:08.1]} 57... a5 {[%clk 0:00:05.5]} 58. f4
{[%clk 0:00:08.5]} 58... a4 {[%clk 0:00:06.1]} 59. Rd3 {[%clk 0:00:07.9]} 59...
Kb5 {[%clk 0:00:06.2]} 60. e5 {[%clk 0:00:09.5]} 60... Kc4 {[%clk 0:00:05.2]}
61. Rg3 {[%clk 0:00:06.2]} 61... Kd4 {[%clk 0:00:04.9]} 62. Ra3 {[%clk
0:00:07.4]} 1-0